fUSD/lending_fUSD_20251221
["ID","MTS","AMOUNT","RATE_DAILY","PERIOD"]
[399430771,1766346121130,-2.33413442,8.022e-05,2]
[399430772,1766346121239,-702.97573294,8.022e-05,2]
[399430773,1766346121269,-238.28198574,8.022e-05,2]
[399430774,1766346124243,-262.43510493,8.021e-05,2]
[399430775,1766346125043,500.0,0.00035616,30]
[399430776,1766346125816,-37.56489507,8.021e-05,2]
[399430777,1766346125838,-150.0,8.021e-05,2]
[399430778,1766346125864,-111.2094722,8.022e-05,2]
[399430779,1766346127802,175.64781923,0.00035616,30]
[399430780,1766346127849,-104.49469548,8.022e-05,2]
[399430781,1766346127875,-153.01435959,8.022e-05,2]
[399430782,1766346129825,-259.97410963,8.022e-05,2]
[399430783,1766346130293,151.0,0.00035616,30]
[399430784,1766346130888,151.0,0.00035616,30]
[399430785,1766346131960,151.0,0.00035616,30]
[399430786,1766346132581,151.0,0.00035616,30]
[399430787,1766346133201,151.0,0.00035616,30]
[399430788,1766346134002,151.0,0.00035616,30]
[399430789,1766346135108,151.0,0.00035616,30]
[399430790,1766346137181,-87.01153078,8.022e-05,2]
[399430791,1766346137206,-300.09697357,8.022e-05,2]
[399430792,1766346141153,-199.90302643,8.022e-05,2]
[399430793,1766346141178,-0.09697357,8.022e-05,2]
[399430794,1766346142569,-235.05501781,8.022e-05,2]
[399430795,1766346144630,-228.57726909,8.022e-05,2]
[399430796,1766346146684,-202.20029535,8.022e-05,2]
[399430797,1766346148348,-102.05114375,8.022e-05,2]
[399430798,1766346148370,-61.44804825,8.022e-05,2]
[399430799,1766346150457,-186.83332982,8.022e-05,2]
[399430800,1766346151160,-1863.66254373,8.022e-05,2]
[399430801,1766346151190,-250.0,8.022e-05,2]
[399430802,1766346151242,-5772.68491254,8.023e-05,2]
[399430803,1766346152003,-199.77480922,8.023e-05,2]
[399430804,1766346167786,-153.42718897,8.022e-05,2]
[399430805,1766346169219,-393.57619135,8.022e-05,2]
[399430806,1766346171329,-327.2484873,8.022e-05,2]
[399430807,1766346174125,-296.58919864,8.022e-05,2]
[399430808,1766346175556,-167.39838277,8.022e-05,2]
[399430809,1766346177361,-332.33498405,8.022e-05,2]
[399430810,1766346179052,-300.0,8.022e-05,2]
[399430811,1766346181110,-284.76491919,8.022e-05,2]
[399430812,1766346184200,-377.99385595,8.022e-05,2]
[399430813,1766346188614,-27.80191537,8.022e-05,2]
[399430814,1766346188640,-295.62905542,8.022e-05,2]
[399430815,1766346190730,-599.42763136,8.022e-05,2]
[399430817,1766346192192,-304.94331322,8.022e-05,2]
[399430818,1766346192217,-195.05668678,8.023e-05,2]
[399430819,1766346193589,-379.64592627,8.023e-05,2]
[399430820,1766346195014,-386.30292743,8.023e-05,2]
[399430821,1766346197695,-157.26373341,8.023e-05,2]
[399430824,1766346199743,-182.57397268,8.023e-05,2]
[399430825,1766346203039,-277.53071861,8.023e-05,2]
[399430826,1766346204539,-229.39039314,8.023e-05,2]
[399430827,1766346206570,-216.65457097,8.023e-05,2]
[399430829,1766346208647,-246.05689094,8.023e-05,2]
[399430831,1766346211556,-305.88233984,8.023e-05,2]
[399430832,1766346214735,-192.25977646,8.023e-05,2]
[399430833,1766346217980,-185.98743255,8.023e-05,2]
[399430834,1766346220488,-245.8797037,8.023e-05,2]
[399430835,1766346221530,-248.81349029,8.023e-05,2]
[399430836,1766346223580,-439.13782976,8.023e-05,2]
[399430837,1766346225146,-208.48179988,8.023e-05,2]
[399430838,1766346227738,-186.28556368,8.023e-05,2]
[399430839,1766346242176,-205.78673127,8.022e-05,2]
[399430840,1766346246218,-94.21326873,8.022e-05,2]
[399430841,1766346246288,-9811.58346254,8.023e-05,2]
[399430842,1766346246513,-280.58142651,8.023e-05,2]
[399430843,1766346249798,-173.23954065,8.023e-05,2]
[399430844,1766346251680,-199.57758253,8.023e-05,2]
[399430848,1766346254043,-411.07924348,8.023e-05,2]
[399430849,1766346255638,-384.4746434,8.023e-05,2]
[399430850,1766346274981,-241.58371912,8.023e-05,2]
[399430851,1766346277154,-185.42845754,8.023e-05,2]
[399430852,1766346281532,-360.15388085,8.023e-05,2]
[399430853,1766346283717,-594.47478772,8.023e-05,2]
[399430856,1766346285236,-157.55058434,8.023e-05,2]
[399430860,1766346288730,-500.0,8.023e-05,2]
[399430861,1766346291563,-297.29561889,8.023e-05,2]
[399430862,1766346293013,-185.34531192,8.023e-05,2]
[399430863,1766346295022,-244.8310071,8.023e-05,2]
[399430864,1766346297685,-243.32495825,8.023e-05,2]
[399430865,1766346303409,-206.61309058,8.022e-05,2]
[399430866,1766346304950,-93.38690942,8.022e-05,2]
[399430867,1766346304973,-185.36406885,8.022e-05,2]
[399430868,1766346307972,-240.93808068,8.022e-05,2]
[399430869,1766346309515,-224.02792052,8.022e-05,2]
[399430870,1766346311662,-165.64607745,8.022e-05,2]
[399430873,1766346313801,-277.12114495,8.022e-05,2]
[399430874,1766346315803,-106.90270755,8.022e-05,2]
[399430875,1766346315826,-106.51705727,8.022e-05,2]
[399430877,1766346319473,-43.48294273,8.022e-05,2]
[399430878,1766346319495,-153.01309059,8.022e-05,2]
[399430879,1766346321342,-130.7255199,8.022e-05,2]
[399430880,1766346321365,-186.70050742,8.023e-05,2]
[399430882,1766346323283,-159.32937716,8.022e-05,2]
[399430885,1766346330513,-340.67062284,8.022e-05,2]
[399430886,1766346330544,-500.0,8.022e-05,2]
[399430887,1766346330589,-500.0,8.022e-05,2]
[399430888,1766346330621,-500.0,8.022e-05,2]
[399430889,1766346330654,-500.0,8.022e-05,2]
[399430890,1766346330685,-500.0,8.022e-05,2]
[399430891,1766346330716,-500.0,8.022e-05,2]
[399430892,1766346330748,-500.0,8.022e-05,2]
[399430893,1766346330778,-500.0,8.022e-05,2]
[399430894,1766346330809,-500.0,8.022e-05,2]
[399430895,1766346330976,-318.66875432,8.022e-05,2]
[399430897,1766346332046,-181.33124568,8.022e-05,2]
[399430898,1766346332072,-43.79724672,8.022e-05,2]
[399430899,1766346335256,-219.41857349,8.022e-05,2]
[399430902,1766346338390,-176.67626731,8.022e-05,2]
[399430903,1766346341036,-60.10791248,8.022e-05,2]
[399430904,1766346341061,-208.68448149,8.022e-05,2]
[399430906,1766346342675,-162.8662351,8.022e-05,2]
[399430908,1766346344037,-128.44928341,8.022e-05,2]
[399430909,1766346344065,-357.02577922,8.022e-05,2]
[399430910,1766346345372,-142.97422078,8.022e-05,2]
[399430911,1766346345400,-192.58628569,8.022e-05,2]
[399430912,1766346346904,-307.41371431,8.022e-05,2]
[399430913,1766346346941,-50.75648756,8.022e-05,2]
[399430914,1766346348376,-271.26330673,8.022e-05,2]
[399430917,1766346350379,-177.98020571,8.022e-05,2]
[399430918,1766346350406,-128.07362792,8.022e-05,2]
[399430919,1766346353761,-242.39910715,8.022e-05,2]
[399430920,1766346354873,-129.52726493,8.022e-05,2]
[399430921,1766346354902,-114.6860038,8.022e-05,2]
[399430923,1766346356893,-289.45372834,8.022e-05,2]
[399430924,1766346358406,-95.86026786,8.022e-05,2]
[399430925,1766346358435,-137.4239859,8.022e-05,2]
[399430928,1766346362134,-237.00163666,8.021e-05,2]
[399430931,1766346365488,-62.99836334,8.021e-05,2]
[399430932,1766346365516,-149.94502502,8.022e-05,2]
[399430933,1766346366855,-212.63098908,8.022e-05,2]
[399430934,1766346366883,-37.91900658,8.022e-05,2]
[399430935,1766346369021,-213.27228091,8.022e-05,2]
[399430936,1766346371050,-248.80871251,8.022e-05,2]
[399430937,1766346371080,-126.07068356,8.022e-05,2]
[399430939,1766346373945,-373.92931644,8.022e-05,2]
[399430940,1766346374006,-265.16844502,8.022e-05,2]
[399430941,1766346374059,-500.0,8.022e-05,2]
[399430942,1766346374107,-500.0,8.022e-05,2]
[399430943,1766346374153,-500.0,8.022e-05,2]
[399430944,1766346374202,-500.0,8.022e-05,2]
[399430946,1766346374250,-500.0,8.022e-05,2]
[399430947,1766346374294,-500.0,8.022e-05,2]
[399430948,1766346374344,-500.0,8.022e-05,2]
[399430949,1766346374395,-500.0,8.022e-05,2]
[399430950,1766346374447,-221.81447708,8.022e-05,2]
[399430951,1766346375895,-278.18552292,8.022e-05,2]
[399430952,1766346375923,-210.6127794,8.022e-05,2]
[399430953,1766346375977,-278.18552292,8.022e-05,2]
[399430954,1766346378114,-11.20169768,8.022e-05,2]
[399430955,1766346378143,-284.84350653,8.022e-05,2]
[399430956,1766346392782,-185.67015371,8.022e-05,2]
[399430957,1766346394332,-29.48633976,8.022e-05,2]
[399430958,1766346394357,-215.08945702,8.022e-05,2]
[399430959,1766346397459,-250.0,8.022e-05,2]
[399430960,1766346399512,-34.91054298,8.022e-05,2]
[399430961,1766346399539,-215.97542752,8.022e-05,2]
[399430962,1766346402179,-151.45860541,8.022e-05,2]
[399430963,1766346403688,-132.56596707,8.022e-05,2]
[399430964,1766346403718,-99.78516393,8.022e-05,2]
[399430965,1766346405273,-333.54423251,8.022e-05,2]
[399430966,1766346406137,-66.67060356,8.022e-05,2]
[399430967,1766346406163,-500.0,8.022e-05,2]
[399430968,1766346406188,-121.02368775,8.022e-05,2]
[399430969,1766346407103,-184.80488258,8.022e-05,2]
[399430970,1766346408248,-179.20601753,8.022e-05,2]
[399430971,1766346408412,-14.96541214,8.022e-05,2]
[399430972,1766346408451,-500.0,8.022e-05,2]
[399430973,1766346408484,-228.94301542,8.022e-05,2]
[399430974,1766346408516,-500.0,8.022e-05,2]
[399430975,1766346408548,-150.0,8.022e-05,2]
[399430976,1766346408581,-500.0,8.022e-05,2]
[399430977,1766346408614,-500.0,8.022e-05,2]
[399430978,1766346408652,-500.0,8.022e-05,2]
[399430979,1766346408689,-500.0,8.022e-05,2]
[399430980,1766346408722,-500.0,8.022e-05,2]
[399430981,1766346408755,-500.0,8.022e-05,2]
[399430982,1766346408787,-242.88940708,8.022e-05,2]
[399430983,1766346408820,-226.41433072,8.022e-05,2]
[399430984,1766346409122,-273.58566928,8.022e-05,2]
[399430985,1766346410793,-350.2803979,8.022e-05,2]
[399430986,1766346412814,-149.7196021,8.022e-05,2]
[399430987,1766346412842,-28.87687509,8.022e-05,2]
[399430988,1766346414350,-285.80535997,8.022e-05,2]
[399430989,1766346417936,-185.31776494,8.022e-05,2]
[399430990,1766346417969,-65.41431563,8.022e-05,2]
[399430991,1766346419720,-206.21057752,8.022e-05,2]
[399430992,1766346423316,-228.37510685,8.022e-05,2]
[399430993,1766346423342,-42.10747984,8.022e-05,2]
[399430994,1766346425372,-450.32826935,8.022e-05,2]
[399430995,1766346426745,-7.56425081,8.022e-05,2]
[399430996,1766346426771,-203.40823171,8.022e-05,2]
[399430997,1766346428471,-296.59176829,8.022e-05,2]
[399430998,1766346428496,-159.32772473,8.022e-05,2]
[399430999,1766346431070,-180.50432612,8.022e-05,2]
[399431000,1766346432905,-160.16794915,8.022e-05,2]
[399431001,1766346432931,-193.59633604,8.022e-05,2]
[399431002,1766346434385,-226.32515273,8.022e-05,2]
[399431003,1766346436085,-80.07851123,8.022e-05,2]
[399431004,1766346436110,-104.58788451,8.022e-05,2]
[399431005,1766346437945,-319.37539144,8.022e-05,2]
[399431006,1766346441294,-76.03672405,8.022e-05,2]
[399431007,1766346441321,-148.57297273,8.022e-05,2]
[399431008,1766346443623,-259.21871866,8.022e-05,2]
[399431009,1766346445461,-92.20830861,8.022e-05,2]
[399431010,1766346445491,-283.55650329,8.022e-05,2]
[399431011,1766346446651,-216.44349671,8.022e-05,2]
[399431012,1766346446675,-142.44530833,8.022e-05,2]
[399431014,1766346450110,-100.44409875,8.022e-05,2]
[399431015,1766346450133,-208.48179988,8.022e-05,2]
[399431016,1766346450157,-317.41886703,8.022e-05,2]
[399431017,1766346452137,-153.26659179,8.022e-05,2]
[399431018,1766346453598,-29.31454118,8.022e-05,2]
[399431019,1766346453623,-240.52677161,8.022e-05,2]
[399431020,1766346456250,-231.28766511,8.022e-05,2]
[399431021,1766346457824,-28.18556328,8.022e-05,2]
[399431022,1766346457849,-147.73343672,8.022e-05,2]
[399431023,1766346458808,-352.26656328,8.022e-05,2]
[399431024,1766346458840,-500.0,8.022e-05,2]
[399431025,1766346458872,-500.0,8.022e-05,2]
[399431026,1766346458903,-500.0,8.022e-05,2]
[399431027,1766346458937,-570.87208873,8.022e-05,2]
[399431028,1766346459048,-5153.73269598,8.023e-05,2]
[399431029,1766346460901,-218.52818786,8.023e-05,2]
[399431030,1766346462023,-186.20593699,8.023e-05,2]
[399431031,1766346464341,-469.29937762,8.023e-05,2]
[399431032,1766346466470,-353.7132364,8.023e-05,2]
[399431033,1766346469565,-208.38635721,8.023e-05,2]
[399431034,1766346471710,-268.49412869,8.023e-05,2]
[399431036,1766346473269,-300.59799323,8.023e-05,2]
[399431037,1766346482183,-189.68687234,8.022e-05,2]
[399431038,1766346483793,-110.31312766,8.022e-05,2]
[399431039,1766346483820,-150.0,8.022e-05,2]
[399431040,1766346483842,-39.68687234,8.022e-05,2]
[399431041,1766346485748,-260.31312766,8.022e-05,2]
[399431042,1766346485770,-117.22461469,8.022e-05,2]
[399431043,1766346487325,-527.78318328,8.022e-05,2]
[399431044,1766346488756,-240.55380638,8.022e-05,2]
[399431045,1766346490153,-239.92416635,8.022e-05,2]
[399431046,1766346491713,-74.5142293,8.022e-05,2]
[399431047,1766346491737,-159.41934257,8.023e-05,2]
[399431048,1766346494476,-90.58065743,8.023e-05,2]
[399431049,1766346494499,-174.70379099,8.023e-05,2]
[399431050,1766346495983,-385.8375704,8.023e-05,2]
[399431053,1766346498526,-257.63416136,8.023e-05,2]
[399431054,1766346500702,-175.35137943,8.022e-05,2]
[399431055,1766346502706,-162.00626023,8.022e-05,2]
[399431056,1766346505519,-206.35231761,8.023e-05,2]
[399431057,1766346507051,-168.44333521,8.023e-05,2]
[399431058,1766346508572,-155.82210314,8.023e-05,2]
[399431060,1766346512152,-195.0,8.023e-05,2]
[399431062,1766346515190,-213.65394262,8.023e-05,2]
[399431064,1766346517625,-265.61679532,8.023e-05,2]
[399431067,1766346520301,-247.54998134,8.023e-05,2]
[399431069,1766346522418,-392.85968118,8.023e-05,2]
[399431070,1766346525180,-300.0,8.023e-05,2]
[399431073,1766346528795,-181.01732946,8.023e-05,2]
[399431075,1766346531014,-152.83,8.023e-05,2]
[399431076,1766346532524,-284.45414948,8.023e-05,2]
[399431077,1766346541256,1000.0,0.00035615,30]
[399431078,1766346541594,1000.0,0.00035563,30]
[399431079,1766346542130,-182.90159858,8.023e-05,2]
[399431082,1766346544212,-215.25675969,8.023e-05,2]
[399431083,1766346546280,-153.24473554,8.023e-05,2]
[399431084,1766346548306,-187.24535868,8.023e-05,2]
[399431085,1766346550385,-163.11636975,8.023e-05,2]
[399431086,1766346551983,-238.0,8.023e-05,2]
[399431087,1766346553532,-272.15512232,8.023e-05,2]
[399431089,1766346572232,-195.0,8.023e-05,2]
[399431090,1766346573792,-283.88811799,8.023e-05,2]
[399431091,1766346575235,-267.33747421,8.023e-05,2]
[399431092,1766346576002,-10000.01,8.023e-05,2]
[399431093,1766346576445,-10000.01,8.023e-05,2]
[399431094,1766346576613,-10000.01,8.023e-05,2]
[399431095,1766346576829,-10000.01,8.023e-05,2]
[399431096,1766346577293,-437.73537449,8.022e-05,2]
[399431097,1766346579388,-62.26462551,8.022e-05,2]
[399431098,1766346579412,-237.73537449,8.022e-05,2]
[399431099,1766346581666,-257.52783332,8.022e-05,2]
[399431100,1766346583449,-4.73679219,8.022e-05,2]
[399431101,1766346583476,-209.68785153,8.022e-05,2]
[399431102,1766346584884,-290.31214847,8.022e-05,2]
[399431103,1766346584906,-500.0,8.022e-05,2]
[399431104,1766346584931,-14.60248594,8.022e-05,2]
[399431105,1766346586394,-211.3932106,8.022e-05,2]
[399431107,1766346598590,-182.04815764,8.022e-05,2]
[399431108,1766346600632,-91.95614582,8.022e-05,2]
[399431109,1766346600653,-295.58392787,8.022e-05,2]
[399431110,1766346605548,-200.816033,8.021e-05,2]
[399431111,1766346607386,-99.183967,8.021e-05,2]
[399431112,1766346607411,-141.816033,8.021e-05,2]
[399431113,1766346609359,-17.183967,8.021e-05,2]
[399431114,1766346609382,-234.77440175,8.021e-05,2]
[399431117,1766346611426,-65.22559825,8.021e-05,2]
[399431118,1766346611449,-118.53213323,8.021e-05,2]
[399431120,1766346614574,-255.23554207,8.021e-05,2]
[399431121,1766346616622,-153.54788473,8.021e-05,2]
[399431124,1766346619711,-182.8505077,8.021e-05,2]
[399431126,1766346621690,-403.50505732,8.021e-05,2]
[399431127,1766346624218,-86.32887495,8.021e-05,2]
[399431128,1766346624250,-171.68410435,8.021e-05,2]
[399431131,1766346627464,-45.31589565,8.021e-05,2]
[399431132,1766346627497,-196.67112505,8.022e-05,2]
[399431133,1766346630150,-7.74494708,8.022e-05,2]
[399431134,1766346630179,-300.20171144,8.022e-05,2]
[399431141,1766346631552,-199.79828856,8.022e-05,2]
[399431142,1766346631563,-500.0,8.022e-05,2]
[399431143,1766346631575,-500.0,8.022e-05,2]
[399431144,1766346631587,-43.02321555,8.022e-05,2]
[399431145,1766346631601,-345.231887,8.022e-05,2]
[399431146,1766346631616,-111.74489745,8.022e-05,2]
[399431147,1766346631628,-362.04713341,8.022e-05,2]
[399431148,1766346631642,-500.0,8.022e-05,2]
[399431149,1766346631658,-500.0,8.022e-05,2]
[399431150,1766346631673,-552.07612271,8.022e-05,2]
[399431151,1766346631686,-1010.13184642,8.023e-05,2]
[399431152,1766346631700,-3875.8766436,8.023e-05,2]
[399431153,1766346631715,-32878.98145999,8.023e-05,2]
[399431154,1766346631729,-806.80112719,8.023e-05,2]
[399431155,1766346631743,-188954.47004804,8.023e-05,2]
[399431156,1766346631755,-1167.951255,8.178e-05,2]
[399431157,1766346631768,-420.0,8.823e-05,2]
[399431158,1766346631780,-420.0,8.823e-05,2]
[399431159,1766346631792,-1680.0,8.823e-05,2]
[399431160,1766346631804,-255.0,8.824e-05,2]
[399431161,1766346631815,-420.0,8.824e-05,2]
[399431162,1766346631827,-193.0,8.824e-05,2]
[399431163,1766346631839,-250.0,8.824e-05,2]
[399431164,1766346631851,-250.0,8.824e-05,2]
[399431165,1766346631863,-250.0,8.825e-05,2]
[399431166,1766346631874,-31010.8099,9.461e-05,2]
[399431167,1766346631886,-363022.9435744,9.574e-05,2]
[399431170,1766346631898,-587.0,9.705e-05,2]
[399431172,1766346631911,-587.0,9.705e-05,2]
[399431174,1766346631924,-2351.0,9.705e-05,2]
[399431176,1766346631937,-433.0,9.707e-05,2]
[399431179,1766346631948,-281.64189663,0.0001,2]
[399431181,1766346631960,-281.64189663,0.0001,2]
[399431184,1766346631972,-281.64189663,0.0001,2]
[399431186,1766346631984,-322.99,0.0001009,2]
[399431188,1766346631997,-1000.0,0.00010158,2]
[399431191,1766346632009,-299.99,0.00010158,2]
[399431193,1766346632021,-150.99,0.00010158,2]
[399431197,1766346632045,-3677.79,0.00010158,2]
[399431199,1766346632058,-9999.99,0.00010158,2]
[399431201,1766346632072,-9999.99,0.00010158,2]
[399431203,1766346632087,-32393.87,0.00010158,2]
[399431204,1766346632101,-10000.01,0.00010295,2]
[399431205,1766346632116,-999.99,0.00010295,2]
[399431206,1766346632129,-9999.99,0.00010295,2]
[399431207,1766346632627,-150.99,0.00010295,2]
[399431208,1766346632662,-405.18,0.00010295,2]
[399431209,1766346632681,-9999.99,0.00010295,2]
[399431210,1766346632692,-9999.99,0.00010295,2]
[399431211,1766346632702,-11813.4,0.0001032,2]
[399431212,1766346632711,-424.33907929,0.00010601,2]
[399431213,1766346632720,-500.0,0.00010635,2]
[399431214,1766346632730,-166.66,0.00010635,2]
[399431215,1766346632739,-332.67,0.00010676,2]
[399431216,1766346632748,-4999.99,0.00010676,2]
[399431217,1766346632758,-9999.99,0.00010676,2]
[399431218,1766346632767,-615.0,0.00010676,2]
[399431219,1766346632776,-735.0,0.00010676,2]
[399431220,1766346632786,-3292.0,0.00010676,2]
[399431221,1766346632799,-736.0,0.00010677,2]
[399431222,1766346632808,-1034.09170763,0.00010886,2]
[399431223,1766346632818,-933.37208451,0.00010886,2]
[399431224,1766346632828,-1237.88979018,0.000109,2]
[399431225,1766346632838,-1237.88979016,0.000109,2]
[399431226,1766346632848,-151.0,0.00010955,2]
[399431227,1766346632857,-151.0,0.00010955,2]
[399431228,1766346632867,-151.0,0.00010955,2]
[399431229,1766346632877,-151.0,0.00010955,2]
[399431230,1766346632887,-151.0,0.00010955,2]
[399431231,1766346632897,-151.0,0.00010955,2]
[399431232,1766346632907,-151.0,0.00010955,2]
[399431233,1766346632917,-151.0,0.00010955,2]
[399431234,1766346632926,-151.0,0.00010955,2]
[399431235,1766346632936,-151.0,0.00010955,2]
[399431236,1766346632946,-151.0,0.00010955,2]
[399431237,1766346632955,-151.0,0.00010955,2]
[399431238,1766346632965,-151.0,0.00010955,2]
[399431239,1766346632974,-151.0,0.00010955,2]
[399431240,1766346632984,-151.0,0.00010955,2]
[399431241,1766346632994,-119.35367873,0.00010955,2]
[399431242,1766346633008,-31.64632127,0.00010955,2]
[399431243,1766346633018,-151.0,0.00010955,2]
[399431244,1766346633028,-151.0,0.00010955,2]
[399431245,1766346633038,-151.0,0.00010955,2]
[399431246,1766346633048,-151.0,0.00010955,2]
[399431247,1766346633058,-150.0,0.00010959,2]
[399431248,1766346633067,-150.0,0.00010959,2]
[399431249,1766346633076,-151.0,0.00010959,2]
[399431250,1766346633086,-57021.58817706,0.00010962,2]
[399431251,1766346633100,-5790.17676085,0.00010962,2]
[399431252,1766346633112,-20673.85181953,0.00010962,2]
[399431253,1766346633123,-324.98920754,0.00010962,2]
[399431256,1766346637731,-604.0,0.00010962,2]
[399431257,1766346637742,-68862.96368475,0.00010962,2]
[399431258,1766346637753,-27248.08636569,0.00010962,2]
[399431259,1766346637785,-90348.5886691,0.00010962,2]
[399431260,1766346637797,-132484.58150928,0.00010962,2]
[399431261,1766346637807,-166.66,0.00010986,2]
[399431262,1766346637819,-1556.03735663,0.00011089,2]
[399431263,1766346637828,-28256.00528844,0.00011099,2]
[399431264,1766346637838,-28256.00528838,0.00011099,2]
[399431266,1766346637847,-15722.27795044,0.00011099,2]
[399431268,1766346637856,-15722.27795035,0.00011099,2]
[399431270,1766346637865,-15722.27795035,0.00011099,2]
[399431272,1766346637874,-15722.27795035,0.00011099,2]
[399431274,1766346637884,-28256.00528838,0.00011228,2]
[399431275,1766346637893,-291.33,0.00011233,2]
[399431277,1766346637902,-771.3,0.0001129,2]
[399431279,1766346637913,-166.66,0.00011337,2]
[399431281,1766346637923,-151.0,0.00011358,2]
[399431282,1766346637934,-200.0,0.00011358,2]
[399431283,1766346637944,-156.587,0.00011358,2]
[399431285,1766346637953,-207.4,0.00011358,2]
[399431287,1766346637962,-162.380719,0.00011358,2]
[399431289,1766346637972,-215.0738,0.00011358,2]
[399431290,1766346637982,-153.50930745,0.00011358,2]
[399431292,1766346637992,-223.0315306,0.00011358,2]
[399431293,1766346638001,-231.28369723,0.00011358,2]
[399431294,1766346638011,-239.84119403,0.00011358,2]
[399431295,1766346638021,-248.71531821,0.00011358,2]
[399431296,1766346638030,-257.91778498,0.00011358,2]
[399431298,1766346638040,-267.46074303,0.00011358,2]
[399431299,1766346638049,-300.0,0.00011358,2]
[399431300,1766346638059,-151.0,0.00011358,2]
[399431301,1766346638068,-933.37208449,0.00011413,2]
[399431302,1766346638078,-1000.0,0.00011428,2]
[399431303,1766346638087,-1237.88979016,0.00011596,2]
[399431304,1766346638097,-166.66,0.00011688,2]
[399431305,1766346638109,-1252.0,0.00011744,2]
[399431306,1766346638119,-4609.0,0.00011744,2]
[399431307,1766346638129,-171.4,0.00011928,2]
[399431308,1766346638139,-933.37208449,0.00011939,2]
[399431309,1766346638148,-256.42,0.00011961,2]
[399431310,1766346638159,-15722.27795035,0.00012022,2]
[399431311,1766346638169,-28256.00528838,0.00012038,2]
[399431312,1766346638178,-166.66,0.00012039,2]
[399431313,1766346638187,-3728.0689,0.00012117,2]
[399431314,1766346638197,-782.41597288,0.00012121,2]
[399431315,1766346638207,-1101.62355977,0.00012216,3]
[399431316,1766346638217,-443694.7088131,0.00012217,2]
[399431317,1766346638227,-1600.0,0.00012221,2]
[399431318,1766346638237,-166.66,0.0001239,2]
[399431319,1766346638247,-5648.38,0.00012566,2]
[399431320,1766346638257,-1237.88979016,0.00012657,2]
[399431321,1766346638266,-1000.0,0.00012698,2]
[399431322,1766346638276,-277.35679052,0.00012727,2]
[399431323,1766346638286,-311.1,0.00012727,2]
[399431324,1766346638296,-151.0,0.00012727,2]
[399431325,1766346638306,-28256.00528838,0.00012848,2]
[399431326,1766346638316,-6453.0,0.00012918,2]
[399431327,1766346638325,-2129.0,0.00012923,2]
[399431328,1766346638335,-15722.27795035,0.00012997,2]
[399431329,1766346638344,-151.0,0.0001336,2]
[399431330,1766346638354,-484030.5914325,0.00013363,2]
[399431331,1766346638363,-500.0,0.00013643,2]
[399431332,1766346638373,-500.0,0.00013643,2]
[399431333,1766346638382,-550.17823057,0.00013643,2]
[399431334,1766346638392,-500.0,0.00013643,2]
[399431335,1766346638401,-501.40165484,0.00013643,2]
[399431336,1766346638411,-500.0,0.00013643,2]
[399431337,1766346638421,-500.0,0.00013643,2]
[399431338,1766346638430,-500.0,0.00013643,2]
[399431339,1766346638440,-500.0,0.00013643,2]
[399431340,1766346638449,-500.0,0.00013643,2]
[399431341,1766346638458,-500.0,0.00013643,2]
[399431342,1766346638468,-535.22474582,0.00013643,2]
[399431343,1766346638478,-500.0,0.00013643,2]
[399431344,1766346638487,-500.0,0.00013643,2]
[399431345,1766346638496,-264.97471348,0.00013643,2]
[399431346,1766346638506,-500.25022933,0.00013643,2]
[399431347,1766346638516,-500.0,0.00013643,2]
[399431348,1766346638526,-500.0,0.00013643,2]
[399431349,1766346638535,-500.0,0.00013643,2]
[399431350,1766346638544,-500.0,0.00013643,2]
[399431351,1766346638554,-500.0,0.00013643,2]
[399431352,1766346638563,-500.0,0.00013643,2]
[399431353,1766346638572,-500.0,0.00013643,2]
[399431354,1766346638581,-235.55154497,0.00013643,2]
[399431355,1766346638591,-484.06013596,0.00013643,2]
[399431356,1766346638601,-500.0,0.00013643,2]
[399431357,1766346638610,-500.0,0.00013643,2]
[399431358,1766346638620,-500.0,0.00013643,2]
[399431359,1766346638629,-453.53849539,0.00013643,2]
[399431360,1766346638640,-500.0,0.00013643,2]
[399431361,1766346638649,-500.0,0.00013643,2]
[399431362,1766346638658,-500.0,0.00013643,2]
[399431363,1766346638667,-500.0,0.00013643,2]
[399431364,1766346638677,-500.0,0.00013643,2]
[399431365,1766346638686,-500.0,0.00013643,2]
[399431366,1766346638695,-1669.3,0.00013643,2]
[399431367,1766346638704,-500.0,0.00013644,2]
[399431368,1766346638714,-28256.00528838,0.00013659,2]
[399431369,1766346638723,-500.0,0.00013698,2]
[399431370,1766346638732,-500.0,0.00013698,2]